[Event "Titled Tuesday Blitz June 6 Early 2023"]
[White "Pavlidou, Ekaterini"]
[Black "Cramling Bellon, Anna"]
[WhiteFideId "4213262"]
[BlackFideId "32009232"]
[WhiteElo "2126"]
[BlackElo "1976"]
[Result "1-0"]
[Round "7"]
[TimeControl "180+2"]
[Date "2023.06.06"]
[WhiteClock "0:00:20"]
[BlackClock "0:00:06"]
[Board "159"]

1. d4 {[%clk 0:03:00]}  Nf6 {[%clk 0:02:59]} 2. c4 {[%clk 0:03:01]}  e6 {[%clk 0:03:00]} 3. Nc3 {[%clk 0:03:01]}  d5 {[%clk 0:03:00]} 4. cxd5 {[%clk 0:02:58]}  exd5 {[%clk 0:03:01]} 5. Bg5 {[%clk 0:02:57]}  Be7 {[%clk 0:03:01]} 6. e3 {[%clk 0:02:57]}  c6 {[%clk 0:03:01]} 7. Bd3 {[%clk 0:02:58]}  Bg4 {[%clk 0:02:53]} 8. f3 {[%clk 0:02:57]}  Bh5 {[%clk 0:02:53]} 9. Nge2 {[%clk 0:02:57]}  Bg6 {[%clk 0:02:50]} 10. Bxg6 {[%clk 0:02:55]}  hxg6 {[%clk 0:02:50]} 11. Qd3 {[%clk 0:02:52]}  Qc7 {[%clk 0:02:42]} 12. O-O-O {[%clk 0:02:45]}  b5 {[%clk 0:02:37]} 13. Kb1 {[%clk 0:02:43]}  Nbd7 {[%clk 0:02:33]} 14. Nf4 {[%clk 0:02:37]}  Qa5 {[%clk 0:02:12]} 15. Rc1 {[%clk 0:02:31]}  b4 {[%clk 0:01:54]} 16. Nce2 {[%clk 0:02:31]}  b3 {[%clk 0:01:53]} 17. Qxb3 {[%clk 0:02:26]}  O-O {[%clk 0:01:53]} 18. h4 {[%clk 0:02:20]}  Rab8 {[%clk 0:01:53]} 19. Qc2 {[%clk 0:02:20]}  Ba3 {[%clk 0:01:45]} 20. Nd3 {[%clk 0:02:19]}  Rxb2+ {[%clk 0:01:09]} 21. Nxb2 {[%clk 0:02:12]}  Rb8 {[%clk 0:01:08]} 22. Nc3 {[%clk 0:01:48]}  Rxb2+ {[%clk 0:01:00]} 23. Qxb2 {[%clk 0:01:48]}  Bxb2 {[%clk 0:01:00]} 24. Kxb2 {[%clk 0:01:48]}  Nb6 {[%clk 0:01:01]} 25. Ka1 {[%clk 0:01:46]}  Nc4 {[%clk 0:01:00]} 26. Rc2 {[%clk 0:01:34]}  Nd7 {[%clk 0:00:51]} 27. Be7 {[%clk 0:01:32]}  Ndb6 {[%clk 0:00:38]} 28. Nd1 {[%clk 0:01:18]}  Na4 {[%clk 0:00:28]} 29. g4 {[%clk 0:01:11]}  Qb5 {[%clk 0:00:18]} 30. h5 {[%clk 0:01:07]}  Qb7 {[%clk 0:00:10]} 31. Bc5 {[%clk 0:00:55]}  Nxc5 {[%clk 0:00:09]} 32. dxc5 {[%clk 0:00:54]}  Qb5 {[%clk 0:00:06]} 33. hxg6 {[%clk 0:00:44]}  fxg6 {[%clk 0:00:07]} 34. Nb2 {[%clk 0:00:36]}  Nxe3 {[%clk 0:00:05]} 35. Rc3 {[%clk 0:00:30]}  d4 {[%clk 0:00:05]} 36. Rb3 {[%clk 0:00:30]}  Qe2 {[%clk 0:00:05]} 37. Nd3 {[%clk 0:00:24]}  Nc2+ {[%clk 0:00:04]} 38. Kb1 {[%clk 0:00:23]}  Ne3 {[%clk 0:00:04]} 39. Rb8+ {[%clk 0:00:19]}  Kf7 {[%clk 0:00:04]} 40. Rb7+ {[%clk 0:00:18]}  Kf6 {[%clk 0:00:04]} 41. g5+ {[%clk 0:00:17]}  Kxg5 {[%clk 0:00:03]} 42. Rg1+ {[%clk 0:00:17]}  Ng2 {[%clk 0:00:03]} 43. Ne1 {[%clk 0:00:15]}  Qxe1+ {[%clk 0:00:02]} 44. Rxe1 {[%clk 0:00:14]}  Nxe1 {[%clk 0:00:03]} 45. Kc1 {[%clk 0:00:15]}  Nxf3 {[%clk 0:00:03]} 46. Kd1 {[%clk 0:00:15]}  d3 {[%clk 0:00:04]} 47. Rxa7 {[%clk 0:00:15]}  Kf4 {[%clk 0:00:03]} 48. Rf7+ {[%clk 0:00:15]}  Ke3 {[%clk 0:00:03]} 49. Re7+ {[%clk 0:00:15]}  Kd4 {[%clk 0:00:03]} 50. Rf7 {[%clk 0:00:16]}  Ne5 {[%clk 0:00:03]} 51. Rxg7 {[%clk 0:00:15]}  Kxc5 {[%clk 0:00:04]} 52. Re7 {[%clk 0:00:16]}  Kd4 {[%clk 0:00:04]} 53. a4 {[%clk 0:00:15]}  c5 {[%clk 0:00:05]} 54. a5 {[%clk 0:00:15]}  c4 {[%clk 0:00:05]} 55. Rxe5 {[%clk 0:00:15]}  Kxe5 {[%clk 0:00:05]} 56. a6 {[%clk 0:00:16]}  Kd4 {[%clk 0:00:04]} 57. a7 {[%clk 0:00:16]}  c3 {[%clk 0:00:04]} 58. a8=Q {[%clk 0:00:17]}  Ke3 {[%clk 0:00:04]} 59. Qe8+ {[%clk 0:00:17]}  Kd4 {[%clk 0:00:04]} 60. Qd7+ {[%clk 0:00:17]}  Ke3 {[%clk 0:00:05]} 61. Qe6+ {[%clk 0:00:17]}  Kd4 {[%clk 0:00:05]} 62. Qd6+ {[%clk 0:00:18]}  Ke3 {[%clk 0:00:06]} 63. Qe5+ {[%clk 0:00:18]}  Kf3 {[%clk 0:00:06]} 64. Qxc3 {[%clk 0:00:19]}  Ke3 {[%clk 0:00:06]} 65. Qc5+ {[%clk 0:00:18]}  Ke4 {[%clk 0:00:06]} 66. Kd2 {[%clk 0:00:19]}  g5 {[%clk 0:00:06]} 67. Qc4+ {[%clk 0:00:20]}  Kf3 {[%clk 0:00:06]} 68. Qxd3+ {[%clk 0:00:20]}  Kf2 {[%clk 0:00:06]} 69. Qf5+ {[%clk 0:00:20]} 1-0


[Site "https://www.chess.com"]

[Event "Titled Tuesday Blitz June 6 Early 2023"]
[White "Nikulina, Alena"]
[Black "Yanayt, Eugene"]
[WhiteFideId "4172051"]
[BlackFideId "2020165"]
[WhiteElo "1608"]
[BlackElo "2083"]
[Result "0-1"]
[Round "7"]
[TimeControl "180+2"]
[Date "2023.06.06"]
[WhiteClock "0:00:01"]
[BlackClock "0:00:09"]
[Board "160"]

1. e4 {[%clk 0:03:00]}  g6 {[%clk 0:02:58]} 2. d4 {[%clk 0:03:00]}  Bg7 {[%clk 0:02:58]} 3. Nc3 {[%clk 0:02:59]}  c5 {[%clk 0:02:58]} 4. Nf3 {[%clk 0:02:58]}  cxd4 {[%clk 0:02:57]} 5. Nxd4 {[%clk 0:02:58]}  Nc6 {[%clk 0:02:58]} 6. Be3 {[%clk 0:02:56]}  Nf6 {[%clk 0:02:52]} 7. Bc4 {[%clk 0:02:40]}  O-O {[%clk 0:02:51]} 8. O-O {[%clk 0:02:38]}  Qa5 {[%clk 0:02:45]} 9. Bb3 {[%clk 0:02:10]}  Rd8 {[%clk 0:02:34]} 10. f3 {[%clk 0:01:58]}  d6 {[%clk 0:02:23]} 11. Nd5 {[%clk 0:01:42]}  e6 {[%clk 0:02:16]} 12. Nxc6 {[%clk 0:01:36]}  bxc6 {[%clk 0:02:13]} 13. Ne7+ {[%clk 0:01:36]}  Kh8 {[%clk 0:02:08]} 14. Nxc6 {[%clk 0:01:36]}  Qc7 {[%clk 0:02:07]} 15. Nxd8 {[%clk 0:01:36]}  Qxd8 {[%clk 0:02:08]} 16. c4 {[%clk 0:01:31]}  Nh5 {[%clk 0:02:00]} 17. Qd2 {[%clk 0:01:30]}  Be5 {[%clk 0:01:47]} 18. f4 {[%clk 0:01:26]}  Bg7 {[%clk 0:01:44]} 19. e5 {[%clk 0:01:21]}  d5 {[%clk 0:01:38]} 20. cxd5 {[%clk 0:01:20]}  exd5 {[%clk 0:01:37]} 21. Qxd5 {[%clk 0:01:20]}  Qxd5 {[%clk 0:01:37]} 22. Bxd5 {[%clk 0:01:20]}  Rb8 {[%clk 0:01:38]} 23. b3 {[%clk 0:01:03]}  Kg8 {[%clk 0:01:36]} 24. Bxa7 {[%clk 0:01:02]}  Rb5 {[%clk 0:01:34]} 25. Bf3 {[%clk 0:00:59]}  Bf8 {[%clk 0:01:32]} 26. Rac1 {[%clk 0:00:55]}  Be6 {[%clk 0:01:28]} 27. Bxh5 {[%clk 0:00:45]}  gxh5 {[%clk 0:01:28]} 28. f5 {[%clk 0:00:45]}  Bd7 {[%clk 0:01:11]} 29. e6 {[%clk 0:00:29]}  fxe6 {[%clk 0:01:07]} 30. fxe6 {[%clk 0:00:30]}  Bxe6 {[%clk 0:01:06]} 31. Rce1 {[%clk 0:00:24]}  Bd7 {[%clk 0:01:05]} 32. Rd1 {[%clk 0:00:23]}  Rb7 {[%clk 0:01:02]} 33. Be3 {[%clk 0:00:21]}  Be7 {[%clk 0:00:56]} 34. Bf4 {[%clk 0:00:15]}  Kg7 {[%clk 0:00:53]} 35. Rfe1 {[%clk 0:00:14]}  Bc5+ {[%clk 0:00:52]} 36. Be3 {[%clk 0:00:15]}  Bb4 {[%clk 0:00:51]} 37. Rf1 {[%clk 0:00:13]}  Be7 {[%clk 0:00:40]} 38. Bd4+ {[%clk 0:00:13]}  Kg6 {[%clk 0:00:40]} 39. Rde1 {[%clk 0:00:13]}  Bg5 {[%clk 0:00:38]} 40. g3 {[%clk 0:00:11]}  Bh3 {[%clk 0:00:33]} 41. Rf2 {[%clk 0:00:10]}  Rd7 {[%clk 0:00:30]} 42. Bb2 {[%clk 0:00:09]}  h4 {[%clk 0:00:25]} 43. Rfe2 {[%clk 0:00:09]}  hxg3 {[%clk 0:00:22]} 44. hxg3 {[%clk 0:00:10]}  Rd3 {[%clk 0:00:22]} 45. Kh2 {[%clk 0:00:08]}  Bg4 {[%clk 0:00:20]} 46. b4 {[%clk 0:00:08]}  Rd5 {[%clk 0:00:16]} 47. a4 {[%clk 0:00:07]}  h5 {[%clk 0:00:14]} 48. b5 {[%clk 0:00:07]}  h4 {[%clk 0:00:14]} 49. gxh4 {[%clk 0:00:06]}  Bf4+ {[%clk 0:00:14]} 50. Kg2 {[%clk 0:00:05]}  Rd3 {[%clk 0:00:13]} 51. Re6+ {[%clk 0:00:04]}  Kh5 {[%clk 0:00:10]} 52. Rc6 {[%clk 0:00:03]}  Rd2+ {[%clk 0:00:10]} 53. Kf1 {[%clk 0:00:02]}  Bh3+ {[%clk 0:00:09]} 54. Kg1 {[%clk 0:00:02]}  Bh2+ {[%clk 0:00:09]} 55. Kh1 {[%clk 0:00:01]}  Bg3 {[%clk 0:00:09]} 0-1


[Site "https://www.chess.com"]

[Event "Titled Tuesday Blitz June 6 Early 2023"]
[White "Kuzmin, Ilya"]
[Black "Flis, Pawel"]
[WhiteFideId "4153863"]
[BlackFideId "1112864"]
[WhiteElo "2093"]
[BlackElo "1822"]
[Result "1-0"]
[Round "7"]
[TimeControl "180+2"]
[Date "2023.06.06"]
[WhiteClock "0:00:20"]
[BlackClock "0:00:30"]
[Board "163"]

1. d4 {[%clk 0:03:00]}  c5 {[%clk 0:02:57]} 2. d5 {[%clk 0:02:57]}  Nf6 {[%clk 0:02:57]} 3. c4 {[%clk 0:02:58]}  b5 {[%clk 0:02:58]} 4. a4 {[%clk 0:02:58]}  bxc4 {[%clk 0:02:45]} 5. Nc3 {[%clk 0:02:57]}  e6 {[%clk 0:02:44]} 6. e4 {[%clk 0:02:56]}  exd5 {[%clk 0:02:42]} 7. e5 {[%clk 0:02:50]}  d4 {[%clk 0:02:39]} 8. exf6 {[%clk 0:02:48]}  dxc3 {[%clk 0:02:38]} 9. Qe2+ {[%clk 0:02:47]}  Be7 {[%clk 0:02:32]} 10. Qxe7+ {[%clk 0:02:39]}  Qxe7+ {[%clk 0:02:29]} 11. fxe7 {[%clk 0:02:39]}  Kxe7 {[%clk 0:02:18]} 12. bxc3 {[%clk 0:02:29]}  d5 {[%clk 0:02:17]} 13. Be3 {[%clk 0:02:16]}  Kd6 {[%clk 0:02:11]} 14. O-O-O {[%clk 0:02:11]}  Be6 {[%clk 0:02:09]} 15. Bxc4 {[%clk 0:02:10]}  Nc6 {[%clk 0:02:09]} 16. Ne2 {[%clk 0:01:56]}  Ke5 {[%clk 0:01:59]} 17. Bf4+ {[%clk 0:01:51]}  Kf6 {[%clk 0:01:46]} 18. Bxd5 {[%clk 0:01:47]}  Bxd5 {[%clk 0:01:45]} 19. Rxd5 {[%clk 0:01:47]}  Na5 {[%clk 0:01:46]} 20. Kc2 {[%clk 0:01:33]}  Rac8 {[%clk 0:01:39]} 21. Rhd1 {[%clk 0:01:24]}  Rhe8 {[%clk 0:01:35]} 22. Ng3 {[%clk 0:01:22]}  g6 {[%clk 0:01:29]} 23. f3 {[%clk 0:01:18]}  Nc4 {[%clk 0:01:19]} 24. Ne4+ {[%clk 0:01:04]}  Kg7 {[%clk 0:01:12]} 25. Rd7 {[%clk 0:00:49]}  Ne5 {[%clk 0:00:54]} 26. Bxe5+ {[%clk 0:00:48]}  Rxe5 {[%clk 0:00:55]} 27. Rxf7+ {[%clk 0:00:45]}  Kxf7 {[%clk 0:00:51]} 28. Nd6+ {[%clk 0:00:46]}  Kf6 {[%clk 0:00:47]} 29. Nxc8 {[%clk 0:00:46]}  Re2+ {[%clk 0:00:45]} 30. Rd2 {[%clk 0:00:46]}  Re8 {[%clk 0:00:45]} 31. Nxa7 {[%clk 0:00:45]}  Ra8 {[%clk 0:00:44]} 32. Rd7 {[%clk 0:00:39]}  h5 {[%clk 0:00:43]} 33. a5 {[%clk 0:00:37]}  Ke6 {[%clk 0:00:42]} 34. Rb7 {[%clk 0:00:35]}  g5 {[%clk 0:00:40]} 35. Kb3 {[%clk 0:00:34]}  Kd5 {[%clk 0:00:40]} 36. c4+ {[%clk 0:00:32]}  Kd4 {[%clk 0:00:39]} 37. Nc6+ {[%clk 0:00:31]}  Ke3 {[%clk 0:00:39]} 38. Ra7 {[%clk 0:00:30]}  Rc8 {[%clk 0:00:37]} 39. Ne5 {[%clk 0:00:27]}  Re8 {[%clk 0:00:31]} 40. Nd7 {[%clk 0:00:22]}  Kf2 {[%clk 0:00:29]} 41. Nxc5 {[%clk 0:00:22]}  Kxg2 {[%clk 0:00:29]} 42. Rg7 {[%clk 0:00:21]}  Re5 {[%clk 0:00:23]} 43. Kb4 {[%clk 0:00:20]}  Kxf3 {[%clk 0:00:22]} 44. a6 {[%clk 0:00:20]}  g4 {[%clk 0:00:21]} 45. a7 {[%clk 0:00:20]}  Re8 {[%clk 0:00:21]} 46. Kb5 {[%clk 0:00:19]}  h4 {[%clk 0:00:21]} 47. Kb6 {[%clk 0:00:20]}  g3 {[%clk 0:00:21]} 48. hxg3 {[%clk 0:00:20]}  hxg3 {[%clk 0:00:22]} 49. Nd3 {[%clk 0:00:19]}  Re6+ {[%clk 0:00:18]} 50. Kb7 {[%clk 0:00:18]}  Re8 {[%clk 0:00:18]} 51. a8=Q {[%clk 0:00:17]}  Rxa8 {[%clk 0:00:19]} 52. Kxa8 {[%clk 0:00:17]}  Ke3 {[%clk 0:00:20]} 53. Nb4 {[%clk 0:00:17]}  Kf2 {[%clk 0:00:19]} 54. c5 {[%clk 0:00:17]}  g2 {[%clk 0:00:20]} 55. Rxg2+ {[%clk 0:00:17]}  Kxg2 {[%clk 0:00:20]} 56. c6 {[%clk 0:00:17]}  Kf3 {[%clk 0:00:21]} 57. c7 {[%clk 0:00:18]}  Ke4 {[%clk 0:00:22]} 58. c8=Q {[%clk 0:00:18]}  Ke5 {[%clk 0:00:23]} 59. Qc6 {[%clk 0:00:18]}  Kd4 {[%clk 0:00:22]} 60. Kb7 {[%clk 0:00:19]}  Ke3 {[%clk 0:00:22]} 61. Kb6 {[%clk 0:00:19]}  Kf4 {[%clk 0:00:23]} 62. Kc5 {[%clk 0:00:20]}  Kg5 {[%clk 0:00:24]} 63. Qe6 {[%clk 0:00:20]}  Kf4 {[%clk 0:00:25]} 64. Kd4 {[%clk 0:00:20]}  Kg5 {[%clk 0:00:26]} 65. Qf7 {[%clk 0:00:20]}  Kh4 {[%clk 0:00:27]} 66. Ke4 {[%clk 0:00:21]}  Kh3 {[%clk 0:00:28]} 67. Qg7 {[%clk 0:00:20]}  Kh2 {[%clk 0:00:29]} 68. Kf3 {[%clk 0:00:20]}  Kh1 {[%clk 0:00:30]} 69. Qg2# {[%clk 0:00:20]} 1-0


[Site "https://www.chess.com"]

[Event "Titled Tuesday Blitz June 6 Early 2023"]
[White "Larina, Maria"]
[Black "Sanchez, Robert"]
[WhiteFideId "24113182"]
[BlackFideId "2034360"]
[WhiteElo "1848"]
[BlackElo "1793"]
[Result "0-1"]
[Round "7"]
[TimeControl "180+2"]
[Date "2023.06.06"]
[WhiteClock "0:00:01"]
[BlackClock "0:00:14"]
[Board "167"]

1. e4 {[%clk 0:03:00]}  d5 {[%clk 0:02:59]} 2. exd5 {[%clk 0:03:01]}  Qxd5 {[%clk 0:03:00]} 3. Nc3 {[%clk 0:03:00]}  Qe6+ {[%clk 0:03:00]} 4. Be2 {[%clk 0:02:54]}  Qg6 {[%clk 0:03:01]} 5. Nf3 {[%clk 0:02:55]}  Qxg2 {[%clk 0:03:00]} 6. Rg1 {[%clk 0:02:55]}  Qh3 {[%clk 0:03:00]} 7. d4 {[%clk 0:02:45]}  Nf6 {[%clk 0:03:00]} 8. Bf4 {[%clk 0:02:43]}  g6 {[%clk 0:03:00]} 9. Bxc7 {[%clk 0:02:40]}  Bh6 {[%clk 0:03:01]} 10. Rg3 {[%clk 0:02:23]}  Qf5 {[%clk 0:03:00]} 11. Qd3 {[%clk 0:02:11]}  O-O {[%clk 0:02:58]} 12. Nh4 {[%clk 0:01:53]}  Qd7 {[%clk 0:02:45]} 13. Be5 {[%clk 0:01:42]}  Nc6 {[%clk 0:02:42]} 14. Bxf6 {[%clk 0:01:36]}  exf6 {[%clk 0:02:43]} 15. d5 {[%clk 0:01:36]}  Ne5 {[%clk 0:02:42]} 16. Qb5 {[%clk 0:01:33]}  Qc7 {[%clk 0:02:28]} 17. Kf1 {[%clk 0:01:21]}  Bd7 {[%clk 0:02:20]} 18. Qb4 {[%clk 0:01:13]}  Rfe8 {[%clk 0:02:18]} 19. Re1 {[%clk 0:01:12]}  Rac8 {[%clk 0:02:01]} 20. f4 {[%clk 0:01:11]}  Nc4 {[%clk 0:01:57]} 21. Bxc4 {[%clk 0:01:05]}  Rxe1+ {[%clk 0:01:56]} 22. Kxe1 {[%clk 0:01:06]}  Qxc4 {[%clk 0:01:56]} 23. Qxc4 {[%clk 0:01:06]}  Rxc4 {[%clk 0:01:57]} 24. f5 {[%clk 0:01:06]}  Rxh4 {[%clk 0:01:56]} 25. fxg6 {[%clk 0:01:05]}  hxg6 {[%clk 0:01:55]} 26. Rg2 {[%clk 0:01:04]}  Rg4 {[%clk 0:01:44]} 27. Re2 {[%clk 0:01:04]}  Kf8 {[%clk 0:01:43]} 28. a4 {[%clk 0:01:01]}  Bxa4 {[%clk 0:01:39]} 29. b3 {[%clk 0:01:00]}  Bd7 {[%clk 0:01:38]} 30. Ne4 {[%clk 0:01:00]}  Bg7 {[%clk 0:01:30]} 31. Nd6 {[%clk 0:00:59]}  Rd4 {[%clk 0:01:17]} 32. c4 {[%clk 0:00:56]}  Rd3 {[%clk 0:01:13]} 33. b4 {[%clk 0:00:53]}  Rd4 {[%clk 0:01:09]} 34. Ra2 {[%clk 0:00:46]}  a6 {[%clk 0:01:06]} 35. Rc2 {[%clk 0:00:25]}  Bf5 {[%clk 0:00:57]} 36. Re2 {[%clk 0:00:22]}  Kg8 {[%clk 0:00:50]} 37. Re8+ {[%clk 0:00:20]}  Kh7 {[%clk 0:00:50]} 38. Rb8 {[%clk 0:00:18]}  Bd3 {[%clk 0:00:40]} 39. Rxb7 {[%clk 0:00:15]}  Bxc4 {[%clk 0:00:40]} 40. Nxc4 {[%clk 0:00:14]}  Rxc4 {[%clk 0:00:40]} 41. d6 {[%clk 0:00:14]}  Rd4 {[%clk 0:00:38]} 42. d7 {[%clk 0:00:12]}  f5 {[%clk 0:00:36]} 43. Ra7 {[%clk 0:00:11]}  Kh6 {[%clk 0:00:30]} 44. Ke2 {[%clk 0:00:10]}  Bf6 {[%clk 0:00:29]} 45. Rb7 {[%clk 0:00:08]}  Kg5 {[%clk 0:00:26]} 46. Ke3 {[%clk 0:00:08]}  Rd1 {[%clk 0:00:25]} 47. Ke2 {[%clk 0:00:08]}  Rd6 {[%clk 0:00:24]} 48. Ke3 {[%clk 0:00:07]}  f4+ {[%clk 0:00:23]} 49. Kf3 {[%clk 0:00:07]}  Kf5 {[%clk 0:00:21]} 50. Rc7 {[%clk 0:00:07]}  g5 {[%clk 0:00:17]} 51. h3 {[%clk 0:00:07]}  Ke6 {[%clk 0:00:16]} 52. Ra7 {[%clk 0:00:04]}  Rxd7 {[%clk 0:00:15]} 53. Rxa6+ {[%clk 0:00:04]}  Rd6 {[%clk 0:00:15]} 54. Ra8 {[%clk 0:00:04]}  Kf5 {[%clk 0:00:15]} 55. b5 {[%clk 0:00:03]}  Rd3+ {[%clk 0:00:14]} 56. Ke2 {[%clk 0:00:03]}  Rb3 {[%clk 0:00:14]} 57. Ra5 {[%clk 0:00:02]}  Be5 {[%clk 0:00:14]} 58. Kf2 {[%clk 0:00:01]}  f3 {[%clk 0:00:14]} 0-1


[Site "https://www.chess.com"]

[Event "Titled Tuesday Blitz June 6 Early 2023"]
[White "Sokolov, Andrei"]
[Black "Quirke, Jeffrey"]
[WhiteFideId "11600306"]
[BlackFideId "2013029"]
[WhiteElo "2473"]
[BlackElo "2192"]
[Result "0-1"]
[Round "7"]
[TimeControl "180+2"]
[Date "2023.06.06"]
[WhiteClock "0:01:21"]
[BlackClock "0:00:51"]
[Board "169"]

1. e4 {[%clk 0:02:58]}  Nf6 {[%clk 0:02:58]} 2. e5 {[%clk 0:02:58]}  Nd5 {[%clk 0:02:56]} 3. c4 {[%clk 0:02:58]}  Nb6 {[%clk 0:02:56]} 4. c5 {[%clk 0:02:58]}  Nd5 {[%clk 0:02:56]} 5. d4 {[%clk 0:02:59]}  d6 {[%clk 0:02:55]} 6. Nc3 {[%clk 0:02:57]}  c6 {[%clk 0:02:54]} 7. Nxd5 {[%clk 0:02:54]}  cxd5 {[%clk 0:02:54]} 8. Qf3 {[%clk 0:02:53]}  Be6 {[%clk 0:02:52]} 9. exd6 {[%clk 0:02:51]}  exd6 {[%clk 0:02:52]} 10. cxd6 {[%clk 0:02:51]}  Bxd6 {[%clk 0:02:50]} 11. Bb5+ {[%clk 0:02:52]}  Nc6 {[%clk 0:02:49]} 12. Bxc6+ {[%clk 0:02:49]}  bxc6 {[%clk 0:02:49]} 13. Be3 {[%clk 0:02:48]}  O-O {[%clk 0:02:48]} 14. Ne2 {[%clk 0:02:48]}  Qa5+ {[%clk 0:02:46]} 15. Bd2 {[%clk 0:02:46]}  Qb6 {[%clk 0:02:47]} 16. Rb1 {[%clk 0:02:45]}  Rfe8 {[%clk 0:02:32]} 17. O-O {[%clk 0:02:41]}  Qa6 {[%clk 0:02:32]} 18. Nc3 {[%clk 0:02:22]}  Rab8 {[%clk 0:02:26]} 19. Rfe1 {[%clk 0:02:18]}  g6 {[%clk 0:02:08]} 20. Bh6 {[%clk 0:02:03]}  Bf5 {[%clk 0:02:03]} 21. g4 {[%clk 0:02:02]}  Bxb1 {[%clk 0:01:56]} 22. Qf6 {[%clk 0:02:01]}  Bf8 {[%clk 0:01:55]} 23. Rxe8 {[%clk 0:01:45]}  Rxe8 {[%clk 0:01:53]} 24. Bxf8 {[%clk 0:01:45]}  Kxf8 {[%clk 0:01:42]} 25. Qh8+ {[%clk 0:01:35]}  Ke7 {[%clk 0:01:42]} 26. Qe5+ {[%clk 0:01:35]}  Kd7 {[%clk 0:01:36]} 27. Qf6 {[%clk 0:01:35]}  Re1+ {[%clk 0:01:29]} 28. Kg2 {[%clk 0:01:34]}  Qf1+ {[%clk 0:01:18]} 29. Kg3 {[%clk 0:01:34]}  Re3+ {[%clk 0:01:04]} 30. Kh4 {[%clk 0:01:25]}  Rh3+ {[%clk 0:00:55]} 31. Kg5 {[%clk 0:01:25]}  h6+ {[%clk 0:00:55]} 32. Kf4 {[%clk 0:01:23]}  Qxf2+ {[%clk 0:00:54]} 33. Ke5 {[%clk 0:01:23]}  Re3+ {[%clk 0:00:51]} 34. Ne4 {[%clk 0:01:21]}  Rxe4# {[%clk 0:00:51]} 0-1


[Site "https://www.chess.com"]

[Event "Titled Tuesday Blitz June 6 Early 2023"]
[White "Mishra, Manoj"]
[Black "Maluco_do_Natal_00"]
[WhiteFideId "5006007"]
[WhiteElo "1847"]
[BlackElo "2064"]
[Result "1-0"]
[Round "7"]
[TimeControl "180+2"]
[Date "2023.06.06"]
[WhiteClock "0:00:16"]
[BlackClock "0:00:01"]
[Board "170"]

1. d4 {[%clk 0:03:00]}  d5 {[%clk 0:02:57]} 2. c4 {[%clk 0:02:45]}  c6 {[%clk 0:02:56]} 3. Nc3 {[%clk 0:02:44]}  Nf6 {[%clk 0:02:57]} 4. Bf4 {[%clk 0:02:44]}  a6 {[%clk 0:02:54]} 5. c5 {[%clk 0:02:42]}  Bf5 {[%clk 0:02:46]} 6. e3 {[%clk 0:02:40]}  Nbd7 {[%clk 0:02:45]} 7. Nf3 {[%clk 0:02:39]}  g6 {[%clk 0:02:23]} 8. Bd3 {[%clk 0:02:36]}  Bxd3 {[%clk 0:02:09]} 9. Qxd3 {[%clk 0:02:35]}  Bg7 {[%clk 0:02:09]} 10. Ne5 {[%clk 0:02:33]}  O-O {[%clk 0:02:05]} 11. O-O {[%clk 0:02:31]}  Nh5 {[%clk 0:01:59]} 12. Nxd7 {[%clk 0:02:25]}  Nxf4 {[%clk 0:01:53]} 13. exf4 {[%clk 0:02:22]}  Qxd7 {[%clk 0:01:53]} 14. Rfe1 {[%clk 0:02:19]}  Rfe8 {[%clk 0:01:52]} 15. Ne2 {[%clk 0:01:58]}  a5 {[%clk 0:01:37]} 16. Ng3 {[%clk 0:01:56]}  e6 {[%clk 0:01:37]} 17. h4 {[%clk 0:01:52]}  Qc7 {[%clk 0:01:27]} 18. Ne2 {[%clk 0:01:40]}  h5 {[%clk 0:01:22]} 19. g3 {[%clk 0:01:34]}  Reb8 {[%clk 0:01:19]} 20. a3 {[%clk 0:01:33]}  b6 {[%clk 0:01:19]} 21. b4 {[%clk 0:01:32]}  axb4 {[%clk 0:01:15]} 22. axb4 {[%clk 0:01:33]}  bxc5 {[%clk 0:01:13]} 23. bxc5 {[%clk 0:01:34]}  Rxa1 {[%clk 0:01:04]} 24. Rxa1 {[%clk 0:01:34]}  Qb7 {[%clk 0:01:03]} 25. Kg2 {[%clk 0:01:25]}  Qb2 {[%clk 0:00:55]} 26. Ra7 {[%clk 0:01:23]}  Rb3 {[%clk 0:00:38]} 27. Qd1 {[%clk 0:01:01]}  Ra3 {[%clk 0:00:21]} 28. Rxa3 {[%clk 0:00:50]}  Qxa3 {[%clk 0:00:21]} 29. Qb1 {[%clk 0:00:49]}  Qa4 {[%clk 0:00:14]} 30. Qd3 {[%clk 0:00:45]}  Bf6 {[%clk 0:00:13]} 31. Qc3 {[%clk 0:00:42]}  Kg7 {[%clk 0:00:12]} 32. Qb2 {[%clk 0:00:42]}  Qc4 {[%clk 0:00:11]} 33. Kf3 {[%clk 0:00:40]}  Qxc5 {[%clk 0:00:09]} 34. dxc5 {[%clk 0:00:35]}  Bxb2 {[%clk 0:00:09]} 35. Ke3 {[%clk 0:00:28]}  f5 {[%clk 0:00:07]} 36. Kd3 {[%clk 0:00:24]}  e5 {[%clk 0:00:06]} 37. fxe5 {[%clk 0:00:22]}  Bxe5 {[%clk 0:00:06]} 38. f4 {[%clk 0:00:22]}  Bb2 {[%clk 0:00:05]} 39. Kc2 {[%clk 0:00:19]}  Bf6 {[%clk 0:00:02]} 40. Kd3 {[%clk 0:00:19]}  Kf7 {[%clk 0:00:02]} 41. Ng1 {[%clk 0:00:18]}  Ke6 {[%clk 0:00:02]} 42. Nf3 {[%clk 0:00:18]}  Kd7 {[%clk 0:00:01]} 43. Nd2 {[%clk 0:00:16]} 1-0


[Site "https://www.chess.com"]

[Event "Titled Tuesday Blitz June 6 Early 2023"]
[White "Alexanian, Nelli"]
[Black "Lohani, Sujana"]
[WhiteFideId "4170539"]
[BlackFideId "12311987"]
[WhiteElo "2031"]
[BlackElo "1718"]
[Result "1-0"]
[Round "7"]
[TimeControl "180+2"]
[Date "2023.06.06"]
[WhiteClock "0:00:17"]
[BlackClock "0:00:04"]
[Board "171"]

1. d4 {[%clk 0:02:54]}  g6 {[%clk 0:03:00]} 2. c4 {[%clk 0:02:53]}  Bg7 {[%clk 0:03:01]} 3. Nc3 {[%clk 0:02:53]}  d6 {[%clk 0:03:02]} 4. e4 {[%clk 0:02:52]}  Nf6 {[%clk 0:03:02]} 5. h4 {[%clk 0:02:51]}  h5 {[%clk 0:03:02]} 6. Be3 {[%clk 0:02:50]}  O-O {[%clk 0:03:01]} 7. f3 {[%clk 0:02:50]}  e5 {[%clk 0:02:40]} 8. d5 {[%clk 0:02:48]}  c6 {[%clk 0:02:40]} 9. Qd2 {[%clk 0:02:47]}  cxd5 {[%clk 0:02:39]} 10. Nxd5 {[%clk 0:02:43]}  Nxd5 {[%clk 0:02:38]} 11. Qxd5 {[%clk 0:02:42]}  Qc7 {[%clk 0:02:26]} 12. Rd1 {[%clk 0:02:28]}  Rd8 {[%clk 0:02:25]} 13. c5 {[%clk 0:02:25]}  Be6 {[%clk 0:02:21]} 14. cxd6 {[%clk 0:02:25]}  Qc2 {[%clk 0:01:57]} 15. Qxb7 {[%clk 0:02:19]}  Nd7 {[%clk 0:01:45]} 16. Ne2 {[%clk 0:01:57]}  Rdb8 {[%clk 0:01:42]} 17. Qc7 {[%clk 0:01:57]}  Rxb2 {[%clk 0:01:39]} 18. Rc1 {[%clk 0:01:46]}  Qd3 {[%clk 0:01:22]} 19. Bxa7 {[%clk 0:01:36]}  Qd2+ {[%clk 0:01:06]} 20. Kf2 {[%clk 0:01:35]}  Rxa2 {[%clk 0:01:03]} 21. Be3 {[%clk 0:01:31]}  Qb2 {[%clk 0:00:52]} 22. Kg3 {[%clk 0:01:24]}  Qb3 {[%clk 0:00:35]} 23. Nc3 {[%clk 0:01:23]}  Rc2 {[%clk 0:00:22]} 24. Bd3 {[%clk 0:01:19]}  Rxc1 {[%clk 0:00:14]} 25. Rxc1 {[%clk 0:01:18]}  Nf6 {[%clk 0:00:13]} 26. Bg5 {[%clk 0:01:10]}  Rc8 {[%clk 0:00:12]} 27. Qa5 {[%clk 0:00:58]}  Nd7 {[%clk 0:00:12]} 28. Ba6 {[%clk 0:00:45]}  Rc5 {[%clk 0:00:10]} 29. Qd8+ {[%clk 0:00:43]}  Kh7 {[%clk 0:00:10]} 30. Nd5 {[%clk 0:00:28]}  Rxc1 {[%clk 0:00:10]} 31. Bxc1 {[%clk 0:00:27]}  Bxd5 {[%clk 0:00:08]} 32. exd5 {[%clk 0:00:27]}  Qxd5 {[%clk 0:00:07]} 33. Qxd7 {[%clk 0:00:26]}  e4 {[%clk 0:00:07]} 34. fxe4 {[%clk 0:00:23]}  Qxe4 {[%clk 0:00:07]} 35. Qxf7 {[%clk 0:00:20]}  Qe1+ {[%clk 0:00:04]} 36. Kh2 {[%clk 0:00:19]}  Qxc1 {[%clk 0:00:04]} 37. Bd3 {[%clk 0:00:17]} 1-0


[Site "https://www.chess.com"]